bitfinex-derivatives/quotes_BTCF0:USTF0_20220102
["timestamp","ask_amount","ask_price","bid_price","bid_amount"]
[1641160518375,0.59192295,47010.0,47009.0,1.71137431]
[1641160518969,0.73792295,47010.0,47009.0,1.71137431]
[1641160520371,0.59192295,47010.0,47009.0,1.71137431]
[1641160520976,0.75892295,47010.0,47009.0,1.71137431]
[1641160521773,0.75892295,47010.0,47009.0,1.72346241]
[1641160522386,0.59192295,47010.0,47009.0,0.3936961]
[1641160522588,0.59192295,47011.0,47009.0,0.3936961]
[1641160522989,0.184,47010.0,47009.0,0.381608]
[1641160523192,0.35049415,47011.0,47009.0,0.381608]
[1641160523793,0.35618349,47010.0,47009.0,0.381608]
[1641160524190,0.35618349,47010.0,47009.0,0.39369593]
[1641160524389,0.35618349,47010.0,47009.0,0.41496577]
[1641160524989,0.38918349,47010.0,47009.0,0.60496577]
[1641160526090,0.38918349,47010.0,47009.0,0.58369593]
[1641160526091,0.033,47010.0,47009.0,0.58369593]
[1641160526294,0.35618349,47011.0,47009.0,0.39369593]
[1641160526690,0.35618349,47011.0,47010.0,0.02126898]
[1641160526891,0.82867549,47013.0,47010.0,0.02126898]
[1641160527092,0.124,47011.0,47010.0,0.03335677]
[1641160527390,0.124,47011.0,47010.0,0.02126898]
[1641160527791,0.124,47011.0,47010.0,1.56124371]
[1641160528294,0.15012967,47018.0,47010.0,1.56124371]
[1641160528692,0.15012967,47018.0,47010.0,1.82194533]
[1641160529090,0.29712967,47018.0,47010.0,2.00494533]
[1641160529591,0.29712967,47018.0,47015.0,0.36235041]
[1641160530395,0.97880516,47018.0,47015.0,0.36235041]
[1641160530592,0.17996914,47017.0,47015.0,0.36235041]
[1641160530793,0.97880516,47018.0,47015.0,0.36235041]
[1641160530993,0.17996914,47017.0,47015.0,0.54435041]
[1641160531397,1.12680516,47018.0,47015.0,0.54435041]
[1641160531694,0.17996914,47017.0,47015.0,0.54435041]
[1641160531895,1.12680516,47018.0,47015.0,0.182]
[1641160532095,0.17996914,47017.0,47015.0,0.182]
[1641160532295,0.17996914,47017.0,47014.0,0.36235041]
[1641160532997,0.33996914,47017.0,47014.0,0.54735041]
[1641160533197,0.59571035,47016.0,47014.0,0.54735041]
[1641160534398,0.59571035,47017.0,47014.0,0.36235041]
[1641160534901,0.15012967,47018.0,47010.0,0.29405831]
[1641160535101,0.124,47017.0,47014.0,0.186]
[1641160535300,0.21467231,47017.0,47014.0,0.186]
[1641160535500,0.21467231,47017.0,47015.0,1.20783902]
[1641160536199,0.09067231,47016.0,47015.0,1.20783902]
[1641160537003,0.23167231,47016.0,47015.0,1.39483902]
[1641160537503,0.141,47016.0,47015.0,1.39483902]
[1641160538506,0.23167231,47016.0,47015.0,1.39483902]
[1641160539106,0.24767231,47016.0,47015.0,0.186]
[1641160540307,0.09067231,47016.0,47013.0,1.72190806]
[1641160541209,0.19167231,47016.0,47013.0,1.90990806]
[1641160541608,0.59670715,47014.0,47013.0,1.90990806]
[1641160542307,0.59670715,47014.0,47013.0,1.72190806]
[1641160543007,0.68470715,47014.0,47013.0,1.91090806]
[1641160543209,0.088,47014.0,47013.0,1.91090806]
[1641160543408,0.92339001,47014.0,47013.0,0.58228514]
[1641160544110,1.01406232,47014.0,47013.0,0.58228514]
[1641160544309,0.92606232,47014.0,47013.0,0.39328514]
[1641160544811,0.92606232,47014.0,47013.0,0.37201736]
[1641160545009,0.95206232,47014.0,47013.0,0.56201736]
[1641160546014,0.86139001,47014.0,47013.0,0.56201736]
[1641160546312,0.09067231,47017.0,47013.0,0.37201736]
[1641160546613,0.09067231,47014.0,47013.0,0.37201736]
[1641160547017,0.09067231,47014.0,47013.0,0.55701736]
[1641160547213,0.154,47017.0,47015.0,1.20894738]
[1641160547214,0.09067231,47016.0,47015.0,1.20894738]
[1641160549016,0.09067231,47016.0,47015.0,1.39694738]
[1641160549017,0.113,47016.0,47015.0,1.39694738]
[1641160549623,0.20367231,47016.0,47015.0,1.39694738]
[1641160550421,0.09067231,47016.0,47015.0,1.20894738]
[1641160551021,0.12767231,47016.0,47015.0,0.188]
[1641160551222,0.037,47016.0,47015.0,0.188]
[1641160552127,0.21696914,47016.0,47015.0,0.188]
[1641160552323,0.30764145,47016.0,47015.0,0.188]
[1641160552523,0.27064145,47016.0,47013.0,1.75403058]
[1641160552925,0.09067231,47016.0,47013.0,1.75403058]
[1641160553126,0.09067231,47015.0,47014.0,1.20896525]
[1641160555125,0.01,47015.0,47014.0,1.40096525]
[1641160556426,0.09067231,47015.0,47014.0,1.20896525]
[1641160557127,0.14167231,47015.0,47014.0,1.40096525]
[1641160557333,0.051,47015.0,47014.0,1.40096525]
[1641160558130,0.14167231,47015.0,47014.0,1.40096525]
[1641160558535,0.09067231,47015.0,47014.0,1.20896525]
[1641160559031,0.16067231,47015.0,47014.0,1.40096525]
[1641160559732,0.07,47015.0,47014.0,1.40096525]
[1641160560230,0.16067231,47015.0,47014.0,1.40096525]
[1641160560430,0.09067231,47015.0,47014.0,1.20896525]
[1641160561134,0.22067231,47015.0,47014.0,1.39996525]
[1641160561935,0.22067231,47015.0,47014.0,0.191]
[1641160562336,0.09067231,47015.0,47013.0,0.42540766]
[1641160563138,0.23067231,47015.0,47013.0,0.61540766]
[1641160563538,0.23067231,47015.0,47013.0,0.19]
[1641160563738,0.14,47015.0,47013.0,0.19]
[1641160563941,0.14,47015.0,47014.0,1.20890437]
[1641160564339,0.17996914,47016.0,47014.0,1.20890437]
[1641160565044,0.09067231,47015.0,47014.0,0.174]
[1641160566442,0.27064145,47015.0,47013.0,1.20890437]
[1641160567042,0.44664145,47015.0,47013.0,1.38990437]
[1641160567243,0.09067231,47014.0,47013.0,1.38990437]
[1641160568444,0.09067231,47014.0,47013.0,1.20890437]
[1641160569044,0.09067231,47014.0,47013.0,1.39690437]
[1641160569244,1.29632832,47018.0,47013.0,1.39690437]
[1641160569446,1.43666399,47018.0,47013.0,1.39690437]
[1641160570251,1.43666399,47018.0,47017.0,0.36267844]
[1641160570252,0.14033567,47018.0,47017.0,0.36267844]
[1641160571044,0.14033567,47018.0,47016.0,0.60446407]
[1641160571045,0.42100798,47018.0,47016.0,0.60446407]
[1641160572054,0.09067231,47017.0,47016.0,0.60446407]
[1641160572860,0.09067231,47017.0,47015.0,0.84624969]
[1641160573058,0.189,47017.0,47016.0,0.153]
[1641160574460,0.14033567,47018.0,47015.0,0.84624969]
[1641160575159,0.32833567,47018.0,47015.0,0.93524969]
[1641160575962,0.09067231,47017.0,47015.0,0.93524969]
[1641160576461,0.09067231,47017.0,47015.0,0.84624969]
[1641160576661,0.14033567,47018.0,47015.0,0.84624969]
[1641160577061,0.187,47017.0,47015.0,1.00424969]
[1641160577562,0.27767231,47017.0,47015.0,1.00424969]
[1641160578362,0.17996914,47016.0,47015.0,0.84624969]
[1641160578964,0.09067231,47017.0,47015.0,0.84624969]
[1641160579165,0.35696914,47016.0,47015.0,1.11694969]
[1641160579564,0.177,47016.0,47015.0,1.11694969]
[1641160579764,0.35696914,47016.0,47015.0,1.11694969]
[1641160580267,0.26767231,47016.0,47015.0,1.11694969]
[1641160580469,0.27064145,47016.0,47015.0,0.93894969]
[1641160581071,0.42064145,47016.0,47015.0,1.12294969]
[1641160581466,0.24067231,47016.0,47015.0,1.12294969]
[1641160581668,0.42064145,47016.0,47015.0,1.12294969]
[1641160582369,0.27064145,47016.0,47015.0,0.93894969]
[1641160583076,0.44864145,47016.0,47015.0,1.11794969]
[1641160583772,0.26867231,47016.0,47015.0,1.11794969]
[1641160584374,0.09067231,47016.0,47015.0,0.93894969]
[1641160585175,0.25967231,47016.0,47015.0,1.12194969]
[1641160586474,0.09067231,47016.0,47015.0,0.93894969]
[1641160587173,0.26067231,47016.0,47015.0,1.12194969]
[1641160587874,0.26067231,47016.0,47015.0,0.2757]
[1641160588280,0.99562098,47016.0,47015.0,0.2757]
[1641160588475,0.82562098,47016.0,47015.0,0.0927]
[1641160588675,0.82562098,47016.0,47014.0,1.20890437]
[1641160589076,0.92462098,47016.0,47015.0,0.507983]
[1641160589376,0.92462098,47016.0,47015.0,1.77766737]
[1641160589575,0.92462098,47016.0,47015.0,1.45768437]
[1641160589776,0.92462098,47016.0,47015.0,0.24878]
[1641160590077,0.099,47016.0,47015.0,0.24878]
[1641160590279,0.6903686,47016.0,47015.0,0.24878]
[1641160590479,0.5913686,47016.0,47015.0,0.06078]
[1641160591081,0.6283686,47016.0,47015.0,0.24878]
[1641160591878,0.6283686,47016.0,47015.0,0.567909]
[1641160592279,0.6283686,47016.0,47015.0,0.24878]
[1641160593081,0.6793686,47016.0,47015.0,0.43678]
[1641160593384,0.6793686,47016.0,47015.0,0.756007]
[1641160593982,0.088,47016.0,47015.0,0.43678]
[1641160594985,0.051,47016.0,47015.0,0.06078]
[1641160595188,0.016,47016.0,47015.0,0.188]
[1641160596085,0.5913686,47017.0,47016.0,0.149759]
[1641160596485,0.5913686,47017.0,47016.0,0.318903]
[1641160597086,0.5913686,47017.0,47016.0,0.187]
[1641160597087,0.103,47017.0,47016.0,0.187]
[1641160597986,0.103,47017.0,47016.0,0.504168]
[1641160598392,0.35550564,47018.0,47015.0,1.20818762]
[1641160598789,0.35550564,47019.0,47016.0,0.84556149]
[1641160599188,0.093,47018.0,47016.0,0.84556149]
[1641160599590,0.093,47018.0,47017.0,0.318021]
[1641160599789,0.093,47018.0,47017.0,0.389391]
[1641160600189,0.093,47018.0,47017.0,1.23495249]
[1641160600390,0.35550564,47019.0,47017.0,1.23495249]
[1641160601190,0.42250564,47019.0,47017.0,1.10193149]
[1641160601992,0.42250564,47019.0,47018.0,0.60396829]
[1641160602396,0.42250564,47019.0,47018.0,0.92230929]
[1641160602596,0.42250564,47019.0,47018.0,0.60396829]
[1641160603194,0.52950564,47019.0,47018.0,0.78996829]
[1641160604496,0.35550564,47019.0,47018.0,0.60396829]
[1641160605112,0.35550564,47019.0,47018.0,0.78996829]
[1641160606514,0.35550564,47019.0,47018.0,0.60396829]
[1641160606914,0.5913686,47021.0,47018.0,0.60396829]
[1641160606915,0.35550564,47020.0,47018.0,0.60396829]
[1641160607114,0.35550564,47020.0,47018.0,0.79096829]
[1641160607615,0.35550564,47020.0,47019.0,0.60396829]
[1641160609123,0.54350564,47020.0,47019.0,0.78896829]
[1641160610618,0.35550564,47020.0,47019.0,0.60396829]
[1641160611121,0.51450564,47020.0,47019.0,0.78796829]
[1641160611320,0.69447478,47020.0,47019.0,0.78796829]
[1641160611920,0.33896914,47020.0,47019.0,0.78796829]
[1641160612121,0.159,47020.0,47019.0,0.78796829]
[1641160612322,1.07528991,47020.0,47019.0,0.184]
[1641160612522,0.91628991,47020.0,47018.0,0.36239616]
[1641160612722,0.99520991,47020.0,47018.0,0.36239616]
[1641160613122,1.18720991,47020.0,47018.0,0.36239616]
[1641160613324,0.36158893,47020.0,47018.0,0.36239616]
[1641160613522,0.36158893,47020.0,47016.0,0.36239616]
[1641160614327,0.91935431,47019.0,47016.0,0.36239616]
[1641160614623,0.59191813,47017.0,47016.0,0.36239616]
[1641160615123,0.70891813,47017.0,47016.0,0.55439616]
[1641160615724,0.88888727,47017.0,47016.0,0.55439616]
[1641160615924,0.70891813,47017.0,47016.0,0.55439616]
[1641160616323,0.117,47017.0,47016.0,0.55439616]
[1641160616927,0.117,47017.0,47016.0,0.192]
[1641160617124,0.59191813,47018.0,47016.0,0.193]
[1641160617726,0.59191813,47018.0,47017.0,0.36240306]
[1641160618527,0.59191813,47018.0,47015.0,0.60396829]
[1641160618729,0.59191813,47018.0,47017.0,0.84556149]
[1641160619228,0.59191813,47018.0,47017.0,1.03556149]
[1641160621131,0.59191813,47018.0,47017.0,1.03356149]
[1641160621330,0.59191813,47018.0,47017.0,0.54197632]
[1641160621531,0.35538751,47018.0,47017.0,0.54197632]
[1641160622734,0.35538751,47018.0,47017.0,0.35397632]
[1641160623130,0.35538751,47018.0,47017.0,0.54197632]
[1641160623330,0.59191813,47020.0,47017.0,0.54197632]
[1641160623532,0.59191813,47019.0,47017.0,0.54197632]
[1641160623933,0.35540981,47018.0,47017.0,0.54197632]
[1641160624532,0.35540981,47018.0,47017.0,0.35397632]
[1641160625235,0.35540981,47018.0,47017.0,0.54197632]
[1641160626636,0.35540981,47018.0,47017.0,0.35397632]
[1641160627136,0.35540981,47018.0,47017.0,0.54197632]
[1641160628438,0.35540981,47018.0,47017.0,0.35397632]
[1641160629338,0.35540981,47018.0,47017.0,0.54097632]
[1641160630639,0.35540981,47018.0,47017.0,0.35397632]
[1641160631238,0.35540981,47018.0,47017.0,0.54197632]
[1641160632548,0.35540981,47018.0,47017.0,0.35397632]
[1641160633243,0.35540981,47018.0,47017.0,0.54197632]
[1641160634244,0.59191813,47019.0,47017.0,0.54197632]
[1641160634544,0.59191813,47019.0,47017.0,0.35397632]
[1641160635248,0.68691813,47019.0,47017.0,0.54097632]
[1641160636547,0.59191813,47019.0,47017.0,0.35397632]
[1641160637350,0.68691813,47019.0,47017.0,0.54097632]
[1641160637953,0.68691813,47019.0,47018.0,0.31932]
[1641160638248,0.68691813,47019.0,47018.0,0.38312429]
[1641160638549,0.59191813,47019.0,47018.0,0.38312429]
[1641160639050,0.59191813,47020.0,47018.0,0.38312429]
[1641160639249,0.129,47019.0,47018.0,0.57012429]
[1641160639651,0.129,47019.0,47018.0,1.77849102]
[1641160640555,0.59191813,47020.0,47018.0,1.59149102]
[1641160641251,0.63991813,47020.0,47018.0,1.77849102]
[1641160642454,0.63991813,47020.0,47018.0,1.45917102]
[1641160642855,0.63991813,47020.0,47019.0,0.84573527]
[1641160643255,0.71791813,47020.0,47019.0,0.84573527]
[1641160645057,0.66991813,47020.0,47019.0,0.84573527]
[1641160645258,0.73591813,47020.0,47019.0,1.03173527]
[1641160646168,0.144,47020.0,47019.0,1.03173527]
[1641160646569,0.59191813,47021.0,47019.0,0.84573527]
[1641160647271,0.73291813,47021.0,47019.0,1.03073527]
[1641160648276,1.56160351,47021.0,47019.0,1.03073527]
[1641160648472,0.59191813,47020.0,47019.0,1.03073527]
[1641160649171,0.59191813,47020.0,47019.0,0.84573527]
[1641160649372,0.72491813,47020.0,47019.0,1.03173527]
[1641160649672,0.133,47020.0,47019.0,1.03173527]
[1641160649874,0.22366433,47020.0,47019.0,0.186]
[1641160650673,0.09066433,47020.0,47018.0,0.90953956]
[1641160650877,0.59360073,47020.0,47019.0,0.84573527]
[1641160651272,0.61460073,47020.0,47019.0,0.84573527]
[1641160652575,0.59360073,47020.0,47019.0,0.84573527]
[1641160653274,0.71760073,47020.0,47019.0,1.03173527]
[1641160654774,0.59360073,47020.0,47019.0,0.84573527]
[1641160655274,0.64560073,47020.0,47019.0,1.03273527]
[1641160655875,0.052,47020.0,47019.0,1.03273527]
[1641160656078,0.12916,47020.0,47019.0,1.03273527]
[1641160656576,0.07716,47020.0,47019.0,0.84573527]
[1641160657076,0.59360073,47021.0,47019.0,0.84573527]
[1641160657276,0.01,47020.0,47019.0,1.03273527]
[1641160658683,0.59360073,47021.0,47019.0,0.84573527]
[1641160659279,0.61060073,47021.0,47019.0,1.03073527]
[1641160660583,0.59360073,47021.0,47019.0,0.84573527]
[1641160660786,0.59360073,47021.0,47020.0,0.84573527]
[1641160661292,0.77760073,47021.0,47020.0,1.02573527]
[1641160661686,0.77760073,47021.0,47020.0,0.18]
[1641160661687,1.01268538,47021.0,47020.0,0.18]
[1641160662689,0.91934873,47021.0,47019.0,0.84573527]
[1641160663388,0.27566335,47021.0,47019.0,0.181]
[1641160663589,0.185,47021.0,47020.0,1.20836673]
[1641160664088,0.27566335,47021.0,47019.0,1.38936673]
[1641160664688,0.09066335,47021.0,47019.0,1.20836673]
[1641160664889,0.09066335,47020.0,47019.0,1.20836673]
[1641160665290,0.25266335,47020.0,47019.0,1.39236673]
[1641160665490,0.162,47020.0,47019.0,1.39236673]
[1641160666692,1.29727879,47024.0,47019.0,1.20836673]
[1641160666891,1.43761446,47025.0,47019.0,1.20836673]
[1641160667291,0.189,47024.0,47019.0,1.37136673]
[1641160667893,0.27966335,47024.0,47019.0,1.37136673]
[1641160668096,0.27966335,47024.0,47023.0,0.60437182]
[1641160668695,0.09066335,47024.0,47023.0,0.60437182]
[1641160669295,0.27066335,47024.0,47023.0,0.77837182]
[1641160669898,0.27066335,47024.0,47023.0,0.174]
[1641160670098,0.27066335,47024.0,47023.0,1.02012055]
[1641160671298,0.45166335,47024.0,47023.0,1.19512055]
[1641160671503,0.27166335,47024.0,47023.0,0.175]
[1641160672098,0.45163249,47024.0,47023.0,0.175]
[1641160672398,0.27166335,47024.0,47023.0,0.175]
[1641160672798,0.09066335,47024.0,47022.0,1.20836673]
[1641160673000,0.15964335,47024.0,47023.0,0.84610162]
[1641160673201,0.33961249,47024.0,47023.0,0.84610162]
[1641160673399,0.53361249,47024.0,47023.0,0.84610162]
[1641160673801,1.64761249,47024.0,47023.0,0.60438276]
[1641160674004,1.67867731,47024.0,47003.0,0.13705594]
[1641160674201,0.17996914,47014.0,47003.0,0.13705594]
[1641160674401,0.17996914,47014.0,47005.0,1.7104]
[1641160674402,1.52122881,47014.0,47005.0,1.7104]
[1641160674801,1.52222881,47014.0,47005.0,1.7104]
[1641160675101,1.52222881,47014.0,47006.0,1.571542]
[1641160675301,1.52222881,47014.0,47009.0,1.45047746]
[1641160675501,0.18096914,47010.0,47009.0,1.45047746]
[1641160676506,0.18096914,47010.0,47002.0,1.571542]
[1641160676702,0.18096914,47010.0,47001.0,1.45047746]
[1641160676703,0.27063249,47010.0,47001.0,1.45047746]
[1641160676903,1.38463249,47010.0,47001.0,1.45047746]
[1641160677103,1.38463249,47010.0,47002.0,0.01208905]
[1641160677302,1.55963249,47010.0,47002.0,0.01208905]
[1641160677504,0.35548035,47006.0,47002.0,1.46256651]
[1641160677907,0.35548035,47006.0,47003.0,0.01208905]
[1641160680106,0.15012967,47014.0,47003.0,1.46256651]
[1641160680107,0.35548035,47007.0,47003.0,1.46256651]
[1641160680707,0.35548035,47007.0,47004.0,0.01208905]
[1641160681408,0.35548035,47005.0,47004.0,0.01208905]
[1641160681807,0.35548035,47005.0,47003.0,0.01208905]
[1641160682209,0.35548035,47005.0,47004.0,0.01208905]
[1641160682407,0.35548035,47006.0,47004.0,0.01208905]
[1641160683007,0.35548035,47006.0,47003.0,0.01208905]
[1641160683407,0.35548035,47006.0,47002.0,1.53201746]
[1641160683408,0.35548035,47006.0,47005.0,0.01208905]
[1641160683607,0.35548035,47006.0,47004.0,0.01208905]
[1641160683909,0.35548035,47013.0,47004.0,0.6157003]
[1641160684106,0.35548035,47013.0,47005.0,0.01208905]
[1641160685309,0.52348035,47013.0,47005.0,0.01208905]
[1641160686008,0.52348035,47013.0,47006.0,0.36216484]
[1641160686709,0.35548035,47013.0,47006.0,0.36216484]
[1641160686913,0.35548035,47012.0,47005.0,0.36216484]
[1641160687309,0.50048035,47012.0,47005.0,0.36216484]
[1641160687511,0.50048035,47012.0,47006.0,0.01208857]
[1641160687710,0.50048035,47012.0,47006.0,0.36216484]
[1641160687711,0.17996914,47009.0,47006.0,0.36216484]
[1641160687910,0.32496914,47012.0,47006.0,0.36216484]
[1641160688412,0.32496914,47012.0,47005.0,0.36216484]
[1641160688711,0.17996914,47012.0,47005.0,0.36216484]
[1641160689212,0.35548035,47013.0,47005.0,0.36216484]
[1641160689416,0.49948035,47012.0,47004.0,0.36216484]
[1641160690010,0.49948035,47012.0,47005.0,0.0120887]
[1641160690212,0.49948035,47012.0,47005.0,0.37425354]
[1641160690812,0.35548035,47012.0,47005.0,0.36216484]
[1641160691314,0.49348035,47012.0,47005.0,0.36216484]
[1641160692416,0.49348035,47012.0,47004.0,0.36216484]
[1641160692620,0.35548035,47012.0,47004.0,0.36216484]
[1641160693115,0.35548035,47012.0,47005.0,0.37425354]
[1641160693316,0.49848035,47012.0,47005.0,0.37425354]
[1641160693717,0.49848035,47012.0,47005.0,0.36216484]
[1641160694616,0.35548035,47012.0,47005.0,0.36216484]
[1641160694821,0.35548035,47013.0,47005.0,0.36216484]
[1641160695018,0.17996914,47012.0,47005.0,0.36216484]
[1641160695217,0.35548035,47013.0,47005.0,0.36216484]
[1641160695418,0.53948035,47013.0,47005.0,0.54116484]
[1641160695619,0.35548035,47012.0,47005.0,0.54116484]
[1641160696320,0.53948035,47013.0,47006.0,0.01208856]
[1641160696718,0.35548035,47013.0,47006.0,0.01208856]
[1641160697323,0.54048035,47013.0,47006.0,0.19308856]
[1641160697521,0.17996914,47011.0,47006.0,0.19308856]
[1641160697721,0.17996914,47011.0,47006.0,0.54316484]
[1641160698522,0.17996914,47011.0,47006.0,0.181]
[1641160698721,0.17996914,47011.0,47004.0,0.36216484]
[1641160699423,0.052,47011.0,47004.0,0.55016484]
[1641160699623,0.23196914,47011.0,47005.0,0.01208877]
[1641160699825,0.23196914,47011.0,47004.0,0.55016484]
[1641160700022,0.052,47011.0,47004.0,0.55016484]
[1641160700221,0.052,47011.0,47005.0,0.36216484]
[1641160700722,0.35548035,47013.0,47005.0,0.36216484]
[1641160700923,0.35548035,47013.0,47006.0,0.36216484]
[1641160701423,0.53648035,47013.0,47006.0,0.36216484]
[1641160702025,0.71644949,47013.0,47006.0,0.36216484]
[1641160702226,0.53648035,47013.0,47006.0,0.36216484]
[1641160702438,0.71644949,47013.0,47006.0,0.36216484]
[1641160702636,0.36096914,47013.0,47006.0,0.36216484]
[1641160702935,1.114,47012.0,47006.0,0.36216484]
[1641160703138,0.36096914,47013.0,47006.0,0.36216484]
[1641160703336,0.55296914,47013.0,47006.0,0.36216484]
[1641160703538,0.35548035,47012.0,47005.0,1.14177609]
[1641160703739,0.35548035,47012.0,47005.0,0.53816484]
[1641160704538,0.35548035,47011.0,47005.0,0.176]
[1641160704837,0.35548035,47011.0,47004.0,0.36216484]
[1641160705339,0.175,47011.0,47004.0,0.183]
[1641160705738,0.82813865,47006.0,47004.0,1.51095542]
[1641160706438,0.59501798,47005.0,47004.0,1.51095542]
[1641160707440,0.59501798,47005.0,47004.0,1.51895542]
[1641160707743,0.82813865,47006.0,47004.0,1.51895542]
[1641160707940,0.82813865,47005.0,47004.0,0.191]
[1641160708843,0.82813865,47005.0,47003.0,1.32795542]
[1641160709442,0.82813865,47005.0,47003.0,1.51895542]
[1641160710350,0.59491025,47004.0,47003.0,1.51895542]
[1641160710745,0.59491025,47004.0,47003.0,1.32795542]
[1641160710944,0.59491025,47004.0,47003.0,1.34004463]
[1641160711345,0.59491025,47004.0,47003.0,1.53104463]
[1641160712645,0.59491025,47004.0,47003.0,1.34004463]
[1641160713446,0.59491025,47004.0,47003.0,1.53304463]
[1641160714051,0.95177576,47004.0,47003.0,0.20508921]
[1641160714249,0.35686551,47004.0,47003.0,0.193]
[1641160714651,0.35686551,47004.0,47001.0,1.32795542]
[1641160714848,0.59491025,47006.0,47001.0,1.32795542]
[1641160715050,0.59491025,47006.0,46999.0,0.34612914]
[1641160715051,0.59491025,47005.0,47002.0,0.01208922]
[1641160715751,0.59491025,47005.0,47001.0,0.20208922]
[1641160715949,0.59491025,47005.0,47001.0,0.19]
[1641160716350,0.35679662,47004.0,47001.0,0.19]
[1641160716750,0.35679662,47004.0,47000.0,1.32795542]
[1641160717151,0.35679662,47003.0,47001.0,0.01208954]
[1641160717750,0.35679662,47003.0,47000.0,0.20608954]
[1641160717951,0.35679662,47003.0,47000.0,0.194]
[1641160718153,0.35679662,47003.0,47001.0,0.01208944]
[1641160719451,0.35679662,47003.0,47002.0,0.18]
[1641160719653,0.35679662,47003.0,47002.0,0.20127076]
[1641160719654,0.22679417,47003.0,47002.0,0.20127076]
[1641160719850,1.30340051,47012.0,47002.0,0.2133602]
[1641160720050,1.30340051,47012.0,47008.0,0.18]
[1641160720250,1.30340051,47012.0,47008.0,0.26767]
[1641160720450,1.30340051,47012.0,47009.0,0.33089644]
[1641160720652,1.30340051,47012.0,47011.0,0.14033567]
[1641160721051,0.09067769,47013.0,47011.0,0.14033567]
[1641160721451,0.09067769,47013.0,47011.0,0.33433567]
[1641160722657,1.42131283,47020.0,47011.0,0.33433567]
[1641160722658,0.09067769,47020.0,47011.0,0.14033567]
[1641160723258,0.09067769,47020.0,47013.0,1.20844755]
[1641160723660,0.09067769,47020.0,47014.0,0.320925]
[1641160724660,1.30340051,47021.0,47014.0,0.320925]
[1641160725462,1.30340051,47021.0,47014.0,0.512925]
[1641160725763,1.3940782,47021.0,47014.0,0.512925]
[1641160726763,1.3940782,47021.0,47014.0,0.320925]
[1641160727464,1.3940782,47021.0,47014.0,0.192]
[1641160728167,1.30340051,47019.0,47017.0,0.8462213]
[1641160729466,1.30340051,47019.0,47017.0,1.0392213]
[1641160729866,1.30340051,47020.0,47017.0,1.0392213]
[1641160730469,0.09067769,47018.0,47017.0,1.0392213]
[1641160730867,0.09067769,47018.0,47017.0,0.8462213]
[1641160731269,1.30340051,47020.0,47016.0,1.20844755]
[1641160731468,1.30340051,47020.0,47017.0,0.193]
[1641160731873,0.358064,47018.0,47017.0,0.193]
[1641160733471,0.83548266,47021.0,47017.0,0.385]
[1641160733671,0.09067769,47023.0,47017.0,0.385]
[1641160733672,0.83548266,47020.0,47017.0,0.385]
[1641160734675,0.83548266,47020.0,47013.0,0.42600526]
[1641160735072,1.25433567,47025.0,47013.0,0.42600526]
[1641160735073,0.35790891,47018.0,47013.0,0.42600526]
[1641160735473,0.35790891,47018.0,47013.0,0.61800526]
[1641160735874,0.35790891,47018.0,47014.0,0.36219368]
[1641160736577,0.35790891,47018.0,47013.0,0.61800526]
[1641160736776,0.35790891,47018.0,47013.0,0.42600526]
[1641160737378,0.35790891,47018.0,47013.0,0.61900526]
[1641160737577,0.35790891,47017.0,47013.0,0.61900526]
[1641160738680,0.35790891,47017.0,47013.0,0.42600526]
[1641160739082,0.35790891,47018.0,47014.0,0.36219368]
[1641160739784,0.35790891,47018.0,47013.0,0.62000526]
[1641160740779,0.35790891,47018.0,47013.0,0.42600526]
[1641160741480,0.35790891,47018.0,47014.0,0.36219368]
[1641160742882,0.35790891,47019.0,47014.0,0.36219368]
[1641160743383,0.35790891,47019.0,47014.0,0.55619368]
[1641160744585,0.35790891,47018.0,47014.0,0.55619368]
[1641160744781,0.35790891,47018.0,47014.0,0.36219368]
[1641160745381,0.35790891,47018.0,47014.0,0.55719368]
[1641160745582,0.35790891,47019.0,47014.0,0.55719368]
[1641160746683,0.35790891,47019.0,47014.0,0.36219368]
[1641160747488,0.35790891,47019.0,47014.0,0.55519368]
[1641160749289,0.35790891,47019.0,47014.0,0.36219368]
[1641160749490,0.35790891,47019.0,47014.0,0.55519368]
[1641160750791,0.35790891,47019.0,47014.0,0.36219368]
[1641160751401,0.35790891,47019.0,47014.0,0.55619368]
[1641160751701,0.35790891,47019.0,47015.0,0.36219368]
[1641160753004,0.35790891,47018.0,47015.0,0.36219368]
[1641160753403,0.35790891,47018.0,47015.0,0.55519368]
[1641160753903,0.35790891,47017.0,47015.0,0.55519368]
[1641160754604,0.35790891,47018.0,47015.0,0.55519368]
[1641160754904,0.35790891,47018.0,47015.0,0.36219368]
[1641160755502,0.35790891,47018.0,47015.0,0.55619368]
[1641160756703,0.35790891,47018.0,47015.0,0.36219368]
[1641160757306,0.35790891,47018.0,47015.0,0.55719368]
[1641160758705,0.35790891,47018.0,47015.0,0.36219368]
[1641160758906,0.83548266,47021.0,47013.0,0.20414725]
[1641160759106,0.83548266,47016.0,47015.0,1.20844755]
[1641160761508,0.83548266,47016.0,47015.0,1.39844755]
[1641160761907,0.14033567,47018.0,47015.0,1.39844755]
[1641160762108,0.09066292,47017.0,47015.0,1.39844755]
[1641160762308,0.09066292,47017.0,47015.0,0.19]
[1641160762909,0.09066292,47017.0,47014.0,1.20844755]
[1641160763411,0.27166292,47017.0,47014.0,1.39244755]
[1641160763817,0.27166292,47017.0,47014.0,0.184]
[1641160764518,0.09066292,47016.0,47014.0,0.184]
[1641160764818,0.09066292,47016.0,47013.0,1.20844755]
[1641160765419,0.27266292,47016.0,47014.0,1.20844755]
[1641160766020,0.182,47016.0,47013.0,1.39444755]
[1641160766420,0.09066292,47015.0,47013.0,1.39444755]
[1641160766920,0.09066292,47015.0,47013.0,1.20844755]
[1641160767323,0.09066292,47015.0,47013.0,1.39744755]
[1641160768228,0.09066292,47017.0,47013.0,1.39744755]
[1641160768424,0.09066292,47017.0,47014.0,1.20844755]
[1641160769426,0.27366292,47017.0,47014.0,1.39444755]
[1641160770030,0.27366292,47017.0,47014.0,0.186]
[1641160770631,0.09066292,47016.0,47014.0,0.186]
[1641160770835,0.09066292,47016.0,47013.0,1.20844755]
[1641160771433,0.25266292,47016.0,47013.0,1.39744755]
[1641160772033,0.09066292,47015.0,47014.0,1.20844755]
[1641160772635,0.09066292,47015.0,47012.0,0.02126822]
[1641160773339,0.09066292,47017.0,47012.0,0.02126822]
[1641160773536,0.09066292,47017.0,47014.0,1.20867559]
[1641160774941,0.09066292,47017.0,47016.0,0.84607305]
[1641160775439,0.27266292,47017.0,47016.0,1.03107305]
[1641160776644,0.09066292,47017.0,47016.0,0.84607305]
[1641160776845,0.09066292,47017.0,47015.0,0.84607305]
[1641160777346,0.09066292,47017.0,47015.0,1.03007305]
[1641160777557,0.27166292,47017.0,47015.0,1.03007305]
[1641160778256,0.09066292,47016.0,47015.0,0.184]
[1641160778860,0.09066292,47016.0,47013.0,1.20867559]